fUSD/lending_fUSD_20251221
["ID","MTS","AMOUNT","RATE_DAILY","PERIOD"]
[399337104,1766314246136,-500.0,0.00016438,2]
[399337105,1766314246146,-600.0,0.00016438,2]
[399337106,1766314246157,-800.0,0.00016438,2]
[399337107,1766314246168,-150.0,0.00016446,2]
[399337108,1766314246178,-150.0,0.00016455,2]
[399337109,1766314246188,-15419.46620445,0.00016456,2]
[399337110,1766314246198,-1600.0,0.00016469,2]
[399337111,1766314246208,-150.0,0.00016477,2]
[399337112,1766314246218,-150.0,0.00016477,2]
[399337113,1766314246228,-150.0,0.00016477,2]
[399337114,1766314246238,-5007.0,0.00016481,2]
[399337115,1766314246248,-500.0,0.00016493,2]
[399337117,1766314246258,-500.0,0.00016493,2]
[399337118,1766314246268,-500.0,0.00016493,2]
[399337119,1766314246278,-500.0,0.00016493,2]
[399337120,1766314246287,-567.20870026,0.00016493,2]
[399337121,1766314246300,-500.0,0.00016493,2]
[399337122,1766314246310,-503.22866963,0.00016493,2]
[399337123,1766314246320,-500.0,0.00016493,2]
[399337124,1766314246330,-500.0,0.00016493,2]
[399337125,1766314246339,-588.02137938,0.00016495,2]
[399337126,1766314246349,-515.272,0.00016495,2]
[399337127,1766314246359,-1002.96949263,0.00016521,2]
[399337128,1766314246369,-1000.0,0.00016521,2]
[399337129,1766314246379,-511.36256137,0.00016521,2]
[399337130,1766314246389,-1000.0,0.00016521,2]
[399337131,1766314246398,-1002.2323831,0.00016521,2]
[399337132,1766314246408,-1000.0,0.00016521,2]
[399337133,1766314246418,-1000.0,0.00016521,2]
[399337134,1766314246428,-1000.0,0.00016521,2]
[399337135,1766314246437,-1000.0,0.00016521,2]
[399337136,1766314246447,-1000.0,0.00016521,2]
[399337137,1766314246456,-849.22640037,0.00016521,2]
[399337138,1766314246466,-1000.0,0.00016521,2]
[399337139,1766314246475,-810.71387342,0.00016521,2]
[399337140,1766314246485,-979.05040621,0.00016521,2]
[399337141,1766314246498,-1000.0,0.00016521,2]
[399337142,1766314246507,-1000.0,0.00016521,2]
[399337143,1766314246517,-1000.0,0.00016521,2]
[399337144,1766314246526,-1000.0,0.00016521,2]
[399337145,1766314246536,-1000.0,0.00016521,2]
[399337146,1766314246546,-1000.0,0.00016521,2]
[399337147,1766314246555,-669.31135743,0.00016521,2]
[399337148,1766314246565,-1000.0,0.00016521,2]
[399337149,1766314246574,-1000.0,0.00016521,2]
[399337150,1766314246584,-1000.0,0.00016521,2]
[399337151,1766314246593,-1000.0,0.00016521,2]
[399337152,1766314246603,-1000.0,0.00016521,2]
[399337153,1766314246612,-1000.0,0.00016521,2]
[399337154,1766314246622,-1000.0,0.00016521,2]
[399337155,1766314246632,-1000.0,0.00016521,2]
[399337156,1766314246642,-1001.73216536,0.00016521,2]
[399337157,1766314246651,-1000.0,0.00016521,2]
[399337158,1766314246661,-1000.0,0.00016521,2]
[399337159,1766314246671,-1000.0,0.00016521,2]
[399337160,1766314246680,-1000.0,0.00016521,2]
[399337161,1766314246689,-1000.0,0.00016521,2]
[399337162,1766314246699,-1000.0,0.00016521,2]
[399337163,1766314246709,-1000.0,0.00016521,2]
[399337164,1766314246719,-150.0,0.00016523,2]
[399337165,1766314246728,-574.12855637,0.00016551,2]
[399337166,1766314246738,-161.14216565,0.00016551,2]
[399337167,1766314246747,-151.0,0.00016551,2]
[399337168,1766314246758,-209.40437685,0.00016551,2]
[399337169,1766314246767,-1616.79,0.0001656,2]
[399337170,1766314246776,-150.0,0.00016562,2]
[399337171,1766314246786,-150.0,0.00016562,2]
[399337172,1766314246796,-150.0,0.00016562,2]
[399337173,1766314246806,-15419.46620445,0.00016567,2]
[399337174,1766314246815,-150.0,0.000166,2]
[399337175,1766314246824,-151.32,0.00016618,2]
[399337176,1766314246834,-10264.4670581,0.00016621,2]
[399337177,1766314246844,-174.32,0.00016631,2]
[399337178,1766314246853,-150.0,0.00016647,2]
[399337179,1766314246864,-150.0,0.00016647,2]
[399337180,1766314246882,-150.0,0.00016647,2]
[399337181,1766314246894,-6005.03218406,0.0001666,2]
[399337182,1766314246904,-150.0,0.00016668,2]
[399337183,1766314246914,-150.0,0.00016677,2]
[399337184,1766314246925,-15419.46620445,0.00016678,2]
[399337185,1766314246935,-227.01,0.00016679,2]
[399337186,1766314246949,-1000.0,0.00016702,2]
[399337187,1766314246959,-150.0,0.00016703,2]
[399337188,1766314246968,-585.0,0.00016704,2]
[399337189,1766314246978,-481.25,0.00016712,2]
[399337190,1766314246990,-165.14,0.00016712,2]
[399337191,1766314247000,-7545.2,0.00016725,2]
[399337192,1766314247010,-150.0,0.00016732,2]
[399337193,1766314247021,-150.0,0.00016755,2]
[399337194,1766314247030,-150.0,0.00016774,2]
[399337195,1766314247040,-500.0,0.00016774,2]
[399337196,1766314247051,-500.0,0.00016774,2]
[399337197,1766314247060,-219.76976975,0.00016774,2]
[399337198,1766314247070,-500.0,0.00016774,2]
[399337199,1766314247081,-500.0,0.00016774,2]
[399337200,1766314247092,-500.0,0.00016774,2]
[399337201,1766314247103,-500.0,0.00016774,2]
[399337202,1766314247114,-500.0,0.00016774,2]
[399337203,1766314247124,-500.0,0.00016774,2]
[399337204,1766314247135,-500.0,0.00016774,2]
[399337205,1766314247144,-500.0,0.00016774,2]
[399337206,1766314247154,-500.0,0.00016774,2]
[399337207,1766314247164,-500.0,0.00016774,2]
[399337208,1766314247174,-500.0,0.00016774,2]
[399337209,1766314247184,-500.0,0.00016774,2]
[399337210,1766314247196,-500.0,0.00016774,2]
[399337211,1766314247206,-500.0,0.00016774,2]
[399337212,1766314247216,-500.0,0.00016774,2]
[399337213,1766314247226,-510.69307451,0.00016774,2]
[399337214,1766314247236,-15419.46620445,0.00016789,2]
[399337215,1766314247246,-1000.0,0.000168,2]
[399337216,1766314247256,-1009.0,0.000168,2]
[399337217,1766314247266,-150.0,0.00016816,2]
[399337218,1766314247276,-150.0,0.00016816,2]
[399337219,1766314247286,-150.0,0.00016816,2]
[399337220,1766314247534,-150.0,0.00016832,2]
[399337221,1766314247543,-1616.79,0.00016834,2]
[399337222,1766314247552,-6365.0,0.00016843,2]
[399337223,1766314247562,-150.0,0.00016845,2]
[399337224,1766314247571,-200.0,0.00016864,2]
[399337225,1766314247583,-150.0,0.0001688,2]
[399337226,1766314247592,-10000.0,0.0001689,2]
[399337227,1766314247602,-749.9984592,0.00016898,2]
[399337228,1766314247613,-749.9984592,0.00016898,2]
[399337229,1766314247623,-749.9984592,0.00016899,2]
[399337230,1766314247635,-806.64579631,0.00016899,2]
[399337231,1766314247645,-781.61644125,0.00016899,2]
[399337232,1766314247655,-749.9984592,0.00016899,2]
[399337233,1766314247664,-749.9984592,0.000169,2]
[399337234,1766314247674,-1446.01712462,0.000169,2]
[399337235,1766314247683,-10264.4670581,0.000169,2]
[399337236,1766314247692,-170.00069611,0.000169,2]
[399337237,1766314247702,-345.66258234,0.000169,2]
[399337238,1766314247711,-1088.5054041,0.000169,2]
[399337239,1766314247725,-15419.46620445,0.000169,2]
[399337240,1766314247734,-749.9984592,0.000169,2]
[399337241,1766314247744,-150.0,0.00016901,2]
[399337242,1766314247754,-588.02137938,0.00016903,2]
[399337243,1766314247763,-736.0,0.00016908,2]
[399337244,1766314247773,-150.0,0.00016909,2]
[399337245,1766314247786,-585.0,0.00016951,2]
[399337246,1766314247796,-200.80764574,0.00016956,2]
[399337247,1766314247805,-362.0,0.00016959,2]
[399337248,1766314247816,-150.0,0.00016973,2]
[399337249,1766314247825,-150.32225297,0.00016973,2]
[399337250,1766314247835,-549.74315086,0.00016983,2]
[399337251,1766314247845,-105482.86,0.00016986,2]
[399337252,1766314247854,-155.64705311,0.00016986,2]
[399337253,1766314247864,-158.48329942,0.00016986,2]
[399337254,1766314247873,-160.33063992,0.00016986,2]
[399337255,1766314247882,-152.0542516,0.00016986,2]
[399337256,1766314247892,-164.52110484,0.00016986,2]
[399337257,1766314247904,-156.76422926,0.00016986,2]
[399337258,1766314247914,-151.72084113,0.00016986,2]
[399337259,1766314247923,-150.82546103,0.00016986,2]
[399337260,1766314247933,-151.68546766,0.00016986,2]
[399337261,1766314247947,-152.94375339,0.00016986,2]
[399337262,1766314247956,-157.75435091,0.00016986,2]
[399337263,1766314247965,-152.11986511,0.00016986,2]
[399337264,1766314247975,-152.70737667,0.00016986,2]
[399337265,1766314247986,-162.0002847,0.00016986,2]
[399337266,1766314247996,-570.37279918,0.0001699,2]
[399337267,1766314248006,-570.37279918,0.0001699,2]
[399337268,1766314248017,-317995.1351089,0.00016998,2]
[399337269,1766314248027,-500.0,0.00016998,2]
[399337270,1766314248036,-500.0,0.00016998,2]
[399337271,1766314248046,-500.0,0.00016998,2]
[399337272,1766314248056,-500.0,0.00016998,2]
[399337273,1766314248066,-500.0,0.00016998,2]
[399337274,1766314248075,-666.0,0.00016998,2]
[399337275,1766314248085,-300.0,0.00016998,2]
[399337276,1766314248095,-666.0,0.00016998,2]
[399337277,1766314248105,-12029.0812705,0.00016999,2]
[399337278,1766314248114,-300.0,0.00016999,2]
[399337279,1766314248124,-666.0,0.00016999,2]
[399337280,1766314248134,-1200738.0851827,0.00016999,2]
[399337281,1766314248143,-355.0322775,0.00016999,2]
[399337282,1766314248152,-500.0,0.00016999,2]
[399337283,1766314248162,-500.0,0.00016999,2]
[399337284,1766314248171,-500.0,0.00016999,2]
[399337285,1766314248181,-500.0,0.00016999,2]
[399337286,1766314248190,-581.56254915,0.00016999,2]
[399337287,1766314248200,-300.0,0.00016999,2]
[399337288,1766314248209,-300.0,0.00016999,2]
[399337289,1766314248219,-666.0,0.00016999,2]
[399337290,1766314248228,-666.0,0.00016999,2]
[399337291,1766314248237,-300.0,0.00016999,2]
[399337292,1766314248247,-676.23992225,0.00016999,2]
[399337293,1766314248257,-255.307319,0.00016999,2]
[399337294,1766314248267,-1483924.91262415,0.00017,2]
[399337295,1766314248277,-500.0,0.00017,2]
[399337296,1766314248286,-160141.69724784,0.00017,2]
[399337297,1766314248295,-107609.58275239,0.00017,2]
[399337298,1766314248306,-151.0,0.00017,2]
[399337299,1766314248316,-921802.79141126,0.00017,2]
[399337300,1766314248325,-876680.03829077,0.00017,2]
[399337301,1766314248374,-38119.65746043,0.00017,2]
[399337302,1766314248386,-5915.79999996,0.00017,2]
[399337303,1766314248404,-362.5,0.00017,2]
[399337304,1766314248421,-525.16036174,0.00017,2]
[399337305,1766314249578,-710.927383,0.00015254,2]
[399337306,1766314249590,-4092.072617,0.00015254,2]
[399337307,1766314249599,-500.0,0.00015973,2]
[399337308,1766314249609,-576.10062402,0.00016521,2]
[399337309,1766314249619,-166229.00448127,0.00017,2]
[399337310,1766314249631,-22454.53499999,0.00017,2]
[399337311,1766314249643,-300.67,0.00017,2]
[399337312,1766314249659,-23988.58992517,0.00017,2]
[399337313,1766314249671,-38870.38012606,0.00017,2]
[399337314,1766314249692,-207045.50460542,0.00017,2]
[399337315,1766314249881,-151.0,0.00016999,2]
[399337316,1766314249891,-595.40126835,0.00017,2]
[399337317,1766314249901,-409.55999997,0.00017,2]
[399337318,1766314249916,-26033.85207952,0.00017,2]
[399337323,1766314311310,-411.41106404,0.000225,30]
[399337324,1766314311347,-175.0,0.00024907,120]
[399337325,1766314311378,-1102.50447493,0.00025,60]
[399337326,1766314311406,-2546.21329655,0.00025,30]
[399337327,1766314311440,-705.33,0.00026116,120]
[399337328,1766314311472,-705.33,0.00026145,120]
[399337329,1766314311504,-705.33,0.00026207,120]
[399337330,1766314311536,-705.33,0.00026241,120]
[399337331,1766314311561,-705.33,0.00026277,120]
[399337332,1766314311588,-705.33,0.00026314,120]
[399337333,1766314311615,-705.33,0.00026355,120]
[399337334,1766314311642,-705.33,0.00026398,120]
[399337335,1766314311667,-705.33,0.00026444,120]
[399337336,1766314311695,-705.33,0.00026494,120]
[399337337,1766314311723,-705.33,0.00026548,120]
[399337338,1766314311749,-705.33,0.00026607,120]
[399337339,1766314311779,-705.33,0.00026673,120]
[399337340,1766314311806,-705.33,0.00026746,120]
[399337341,1766314311832,-705.33,0.0002683,120]
[399337342,1766314311859,-705.33,0.00026926,120]
[399337343,1766314311885,-705.33,0.0002704,120]
[399337344,1766314311913,-705.33,0.00027179,120]
[399337345,1766314311940,-705.33,0.00027359,120]
[399337346,1766314311966,-836.4,0.00027397,35]
[399337347,1766314311995,-299.61,0.00027397,30]
[399337348,1766314312022,-332.67519081,0.00027599,30]
[399337349,1766314312049,-400.0,0.00028,120]
[399337350,1766314312074,-172.91583061,0.00028204,30]
[399337351,1766314312100,-1203.93795033,0.00028767,120]
[399337352,1766314312125,-500.0,0.00028767,120]
[399337353,1766314312154,-500.0,0.00028904,120]
[399337354,1766314312180,-500.0,0.00029041,120]
[399337355,1766314312208,-495.2443898,0.00029178,120]
[399337356,1766314312247,-21491.89833066,0.000295,120]
[399337357,1766314312277,-250.0,0.0003,30]
[399337358,1766314312305,-400.0,0.0003,120]
[399337359,1766314312331,-379.34418458,0.0003,30]
[399337360,1766314312357,-1120.22446458,0.0003,120]
[399337361,1766314312382,-263.74636171,0.0003,30]
[399337362,1766314312408,-1166.35217812,0.0003,30]
[399337363,1766314312434,-1000.0,0.0003,120]
[399337364,1766314312461,-1153.13081,0.0003,120]
[399337365,1766314312487,-500.0,0.0003,30]
[399337366,1766314312513,-300.0,0.0003013,30]
[399337367,1766314312542,-152.72096521,0.000303,120]
[399337368,1766314312568,-1424.02,0.000304,30]
[399337369,1766314312596,-250.0,0.000308,30]
[399337370,1766314312622,-250.0,0.00031,30]
[399337371,1766314312655,-162.57708831,0.00031,120]
[399337372,1766314312682,-439.0,0.000314,120]
[399337373,1766314312709,-1262.10706928,0.000315,120]
[399337374,1766314312735,-165.73,0.00031507,120]
[399337375,1766314312762,-250.0,0.00032,30]
[399337376,1766314312789,-400.0,0.00032,120]
[399337377,1766314312815,-1239.45148375,0.00032,120]
[399337378,1766314312842,-1000.0,0.00032,120]
[399337379,1766314312869,-322.0,0.0003232,120]
[399337380,1766314313389,-208.0,0.0003286,30]
[399337381,1766314313421,-151.0,0.00032877,31]
[399337382,1766314313450,-151.0,0.00032877,31]
[399337383,1766314313478,-151.0,0.00032877,31]
[399337384,1766314313504,-151.0,0.00032877,31]
[399337385,1766314313532,-151.0,0.00032877,31]
[399337386,1766314313562,-241.987789,0.00032877,31]
[399337387,1766314313588,-151.0,0.00032877,31]
[399337388,1766314313615,-152.198614,0.00032877,31]
[399337389,1766314313645,-250.0,0.00033,30]
[399337390,1766314313677,-1424.02,0.00033,30]
[399337391,1766314313705,-169.0,0.00033,30]
[399337392,1766314313731,-2000.0,0.00033099,120]
[399337393,1766314313759,-250.0,0.00034,30]
[399337394,1766314313790,-400.0,0.00034,120]
[399337395,1766314313819,-200.38,0.00034246,30]
[399337396,1766314313848,-2000.0,0.00034599,120]
[399337397,1766314313880,-262.37276638,0.0003488,120]
[399337398,1766314313912,-208.0,0.0003488,30]
[399337399,1766314313939,-200.38,0.00034931,31]
[399337400,1766314313966,-250.0,0.00035,30]
[399337401,1766314313996,-2635.47050494,0.00035,30]
[399337402,1766314314024,-815.58847359,0.00035,30]
[399337403,1766314314051,-1639.28729419,0.00035,30]
[399337404,1766314314079,-3000.0,0.00035,30]
[399337405,1766314314107,-3000.0,0.00035,30]
[399337406,1766314314138,-1370.75315382,0.00035,120]
[399337407,1766314314165,-1000.0,0.00035,120]
[399337408,1766314314192,-1424.02,0.000351,30]
[399337409,1766314314218,-1106.5502,0.0003522,30]
[399337410,1766314314244,-320.0,0.0003538,120]
[399337411,1766314314271,-233.18966445,0.00035616,45]
[399337412,1766314314296,-627.3,0.00035616,83]
[399337413,1766314314322,-619.8,0.00035616,45]
[399337414,1766314314351,-584.1,0.00035616,49]
[399337415,1766314314378,-700.2,0.00035616,47]
[399337416,1766314314404,-452.1,0.00035616,40]
[399337417,1766314314431,-176.76,0.00035616,46]
[399337418,1766314314458,-200.38,0.00035616,32]
[399337419,1766314314488,-160.199833,0.00035616,31]
[399337420,1766314314514,-151.0,0.00035616,31]
[399337421,1766314314539,-151.0,0.00035616,31]
[399337422,1766314314565,-151.0,0.00035616,31]
[399337423,1766314314592,-151.0,0.00035616,31]
[399337424,1766314314618,-151.0,0.00035616,31]
[399337425,1766314314645,-151.0,0.00035616,31]
[399337426,1766314314672,-151.0,0.00035616,31]
[399337427,1766314314698,-151.0,0.00035616,31]
[399337428,1766314314724,-151.0,0.00035616,31]
[399337429,1766314314751,-151.0,0.00035616,31]
[399337430,1766314314777,-151.0,0.00035616,31]
[399337431,1766314314803,-151.0,0.00035616,31]
[399337432,1766314314827,-151.0,0.00035616,31]
[399337433,1766314314852,-151.0,0.00035616,31]
[399337434,1766314314878,-151.0,0.00035616,31]
[399337435,1766314314904,-151.0,0.00035616,31]
[399337436,1766314314930,-151.0,0.00035616,31]
[399337437,1766314314956,-151.0,0.00035616,31]
[399337438,1766314314988,-151.0,0.00035616,31]
[399337439,1766314315016,-189.665874,0.00035616,31]
[399337440,1766314315044,-374.467469,0.00035616,31]
[399337441,1766314315072,-374.467469,0.00035616,31]
[399337442,1766314315099,-374.467469,0.00035616,31]
[399337443,1766314315127,-374.467469,0.00035616,31]
[399337444,1766314315154,-374.467469,0.00035616,31]
[399337445,1766314315180,-374.467469,0.00035616,31]
[399337446,1766314315207,-374.467469,0.00035616,31]
[399337447,1766314315233,-374.467469,0.00035616,31]
[399337448,1766314315263,-374.467469,0.00035616,31]
[399337449,1766314315292,-374.467469,0.00035616,31]
[399337450,1766314315326,-374.467469,0.00035616,31]
[399337451,1766314315357,-374.467469,0.00035616,31]
[399337452,1766314315386,-374.467469,0.00035616,31]
[399337453,1766314315420,-374.467469,0.00035616,31]
[399337454,1766314315452,-374.467469,0.00035616,31]
[399337455,1766314315478,-374.467469,0.00035616,31]
[399337456,1766314315505,-374.467469,0.00035616,31]
[399337457,1766314315533,-374.467469,0.00035616,31]
[399337458,1766314315559,-374.467469,0.00035616,31]
[399337459,1766314315583,-374.46746,0.00035616,31]
[399337460,1766314315609,-151.0,0.00035616,31]
[399337461,1766314315634,-151.0,0.00035616,31]
[399337462,1766314315661,-151.0,0.00035616,31]
[399337463,1766314315687,-151.0,0.00035616,31]
[399337464,1766314315712,-151.0,0.00035616,31]
[399337465,1766314315737,-151.0,0.00035616,31]
[399337466,1766314315763,-151.0,0.00035616,31]
[399337467,1766314315788,-151.0,0.00035616,31]
[399337468,1766314315813,-151.0,0.00035616,31]
[399337469,1766314315837,-151.0,0.00035616,31]
[399337470,1766314315862,-211.636548,0.00035616,31]
[399337471,1766314315887,-151.0,0.00035616,31]
[399337472,1766314315911,-151.0,0.00035616,31]
[399337473,1766314315937,-151.0,0.00035616,31]
[399337474,1766314316220,-290.442547,0.00035616,31]
[399337475,1766314316258,-151.0,0.00035616,31]
[399337476,1766314316285,-162.793937,0.00035616,31]
[399337477,1766314316312,-164.249446,0.00035616,31]
[399337478,1766314316338,-155.461484,0.00035616,31]
[399337479,1766314316364,-151.0,0.00035616,31]
[399337480,1766314316390,-151.0,0.00035616,31]
[399337481,1766314316423,-151.0,0.00035616,31]
[399337482,1766314316448,-151.0,0.00035616,31]
[399337483,1766314316475,-151.0,0.00035616,31]
[399337484,1766314316500,-151.0,0.00035616,31]
[399337485,1766314316527,-284.717046,0.00035616,31]
[399337486,1766314316553,-151.0,0.00035616,31]
[399337487,1766314316578,-151.0,0.00035616,31]
[399337488,1766314316603,-151.0,0.00035616,31]
[399337489,1766314316629,-151.0,0.00035616,31]
[399337490,1766314316653,-151.0,0.00035616,31]
[399337491,1766314316679,-151.0,0.00035616,31]
[399337492,1766314316704,-151.0,0.00035616,31]
[399337493,1766314316730,-151.0,0.00035616,31]
[399337494,1766314316756,-151.0,0.00035616,31]
[399337495,1766314316785,-251.546372,0.00035616,31]
[399337496,1766314316812,-151.0,0.00035616,31]
[399337497,1766314316839,-155.336018,0.00035616,31]
[399337498,1766314316864,-151.0,0.00035616,31]
[399337499,1766314316891,-151.0,0.00035616,31]
[399337500,1766314316921,-151.0,0.00035616,31]
[399337501,1766314316947,-151.0,0.00035616,31]
[399337502,1766314316977,-151.0,0.00035616,31]
[399337503,1766314317007,-151.0,0.00035616,31]
[399337504,1766314317033,-151.0,0.00035616,31]
[399337505,1766314317060,-151.0,0.00035616,31]
[399337506,1766314317087,-151.0,0.00035616,31]
[399337507,1766314317113,-151.0,0.00035616,31]
[399337508,1766314317140,-151.0,0.00035616,31]
[399337509,1766314317166,-151.0,0.00035616,31]
[399337510,1766314317192,-151.0,0.00035616,31]
[399337511,1766314317218,-151.0,0.00035616,31]
[399337512,1766314317248,-151.0,0.00035616,31]
[399337513,1766314317275,-165.442269,0.00035616,31]
[399337514,1766314317301,-151.0,0.00035616,31]
[399337515,1766314317326,-151.0,0.00035616,31]
[399337516,1766314317351,-151.0,0.00035616,31]
[399337517,1766314317376,-151.0,0.00035616,31]
[399337518,1766314317401,-151.0,0.00035616,31]
[399337519,1766314317425,-151.0,0.00035616,31]
[399337520,1766314317450,-293.541843,0.00035616,31]
[399337521,1766314317475,-156.322668,0.00035616,31]
[399337522,1766314317500,-151.0,0.00035616,31]
[399337523,1766314317526,-151.0,0.00035616,31]
[399337524,1766314317551,-151.0,0.00035616,31]
[399337525,1766314317576,-151.0,0.00035616,31]
[399337526,1766314317606,-151.0,0.00035616,31]
[399337527,1766314317632,-165.168563,0.00035616,31]
[399337528,1766314317658,-151.0,0.00035616,31]
[399337529,1766314317683,-151.0,0.00035616,31]
[399337530,1766314317708,-151.0,0.00035616,31]
[399337531,1766314317733,-252.774288,0.00035616,31]
[399337532,1766314317759,-151.0,0.00035616,31]
[399337533,1766314317784,-151.0,0.00035616,31]
[399337534,1766314317808,-1640.065011,0.00035616,31]
[399337535,1766314317835,-151.0,0.00035616,31]
[399337536,1766314317860,-1640.065011,0.00035616,31]
[399337537,1766314317885,-151.0,0.00035616,31]
[399337538,1766314317911,-1640.065011,0.00035616,31]
[399337539,1766314317938,-151.0,0.00035616,31]
[399337540,1766314317964,-1640.065011,0.00035616,31]
[399337541,1766314317997,-151.0,0.00035616,31]
[399337542,1766314318026,-1640.065011,0.00035616,31]
[399337543,1766314318054,-151.0,0.00035616,31]
[399337544,1766314318080,-1640.065011,0.00035616,31]
[399337545,1766314318107,-151.0,0.00035616,31]
[399337546,1766314318135,-1640.065011,0.00035616,31]
[399337547,1766314318161,-151.0,0.00035616,31]
[399337548,1766314318187,-1640.065011,0.00035616,31]
[399337549,1766314318214,-151.0,0.00035616,31]
[399337550,1766314318241,-1640.065011,0.00035616,31]
[399337551,1766314318267,-274.974382,0.00035616,31]
[399337552,1766314318294,-1640.065011,0.00035616,31]
[399337553,1766314318320,-1640.065011,0.00035616,31]
[399337554,1766314318346,-1640.065011,0.00035616,31]
[399337555,1766314318374,-1640.065011,0.00035616,31]
[399337556,1766314318402,-1640.065011,0.00035616,31]
[399337557,1766314318430,-1640.065011,0.00035616,31]
[399337558,1766314318457,-1640.065011,0.00035616,31]
[399337559,1766314318483,-1640.065011,0.00035616,31]
[399337560,1766314318508,-1640.065011,0.00035616,31]
[399337561,1766314318536,-1640.065011,0.00035616,31]
[399337562,1766314318564,-1640.065015,0.00035616,31]
[399337563,1766314318591,-2396.005466,0.00035616,31]
[399337564,1766314318620,-2396.005466,0.00035616,31]
[399337565,1766314318646,-2396.005466,0.00035616,31]
[399337566,1766314318674,-2396.005466,0.00035616,31]
[399337567,1766314318701,-2396.005466,0.00035616,31]
[399337568,1766314318728,-2396.005466,0.00035616,31]
[399337570,1766314319045,-2396.005466,0.00035616,31]
[399337571,1766314319075,-2396.005466,0.00035616,31]
[399337572,1766314319103,-2396.005466,0.00035616,31]
[399337573,1766314319132,-2396.005466,0.00035616,31]
[399337574,1766314319160,-2396.005466,0.00035616,31]
[399337575,1766314319188,-2396.005466,0.00035616,31]
[399337576,1766314319215,-2396.005466,0.00035616,31]
[399337577,1766314319241,-2396.005466,0.00035616,31]
[399337578,1766314319267,-2396.005466,0.00035616,31]
[399337579,1766314319292,-2396.005466,0.00035616,31]
[399337580,1766314319318,-2396.005466,0.00035616,31]
[399337581,1766314319345,-2396.005466,0.00035616,31]
[399337582,1766314319371,-2396.005466,0.00035616,31]
[399337583,1766314319399,-2396.005461,0.00035616,31]
[399337584,1766314319427,-154.811481,0.00035616,31]
[399337585,1766314319453,-1386.093682,0.00035616,31]
[399337586,1766314319480,-1386.093682,0.00035616,31]
[399337587,1766314319506,-1386.093682,0.00035616,31]
[399337588,1766314319535,-1386.093682,0.00035616,31]
[399337589,1766314319562,-1386.093682,0.00035616,31]
[399337590,1766314319587,-1386.093682,0.00035616,31]
[399337591,1766314319612,-1386.093682,0.00035616,31]
[399337592,1766314319638,-1386.093682,0.00035616,31]
[399337593,1766314319664,-1386.093682,0.00035616,31]
[399337594,1766314319689,-1386.093682,0.00035616,31]
[399337595,1766314319714,-1386.093682,0.00035616,31]
[399337596,1766314319740,-1386.093682,0.00035616,31]
[399337597,1766314319765,-1386.093682,0.00035616,31]
[399337598,1766314319791,-1386.093682,0.00035616,31]
[399337599,1766314319816,-1386.093682,0.00035616,31]
[399337600,1766314319843,-1386.093682,0.00035616,31]
[399337601,1766314319871,-1386.093682,0.00035616,31]
[399337602,1766314319896,-1386.093682,0.00035616,31]
[399337603,1766314319922,-1386.093682,0.00035616,31]
[399337604,1766314319947,-1386.093685,0.00035616,31]
[399337605,1766314319973,-213.922821,0.00035616,31]
[399337606,1766314320000,-213.922821,0.00035616,31]
[399337607,1766314320030,-213.922821,0.00035616,31]
[399337608,1766314320060,-213.922821,0.00035616,31]
[399337609,1766314320089,-213.922821,0.00035616,31]